fUSD/lending_fUSD_20250515
["ID","MTS","AMOUNT","RATE_DAILY","PERIOD"]
[361114080,1747267844969,-877.77,0.00011717,2]
[361114081,1747267844978,-442.22,0.00011717,2]
[361114083,1747267844987,-400.0,0.00011717,2]
[361114085,1747267844997,-451.81,0.00011717,2]
[361114087,1747267845006,-2363.01,0.00011717,2]
[361114089,1747267845015,-400.0,0.00011717,2]
[361114091,1747267845025,-3569.66,0.00011717,2]
[361114094,1747267845034,-400.0,0.00011717,2]
[361114096,1747267845044,-460.93,0.00011717,2]
[361114098,1747267845054,-400.0,0.00011717,2]
[361114100,1747267845064,-400.0,0.00011717,2]
[361114101,1747267845073,-766.01,0.00011717,2]
[361114103,1747267845083,-400.0,0.00011717,2]
[361114104,1747267845092,-402.02324365,0.00011718,2]
[361114105,1747267845101,-400.0,0.00011718,2]
[361114106,1747267845111,-10074.975236,0.00011718,2]
[361114107,1747267845120,-400.0,0.00011718,2]
[361114108,1747267845129,-400.0,0.00011718,2]
[361114109,1747267845138,-400.0,0.00011718,2]
[361114110,1747267845147,-400.0,0.00011718,2]
[361114111,1747267845156,-400.0,0.00011718,2]
[361114112,1747267845166,-1463.78,0.00011718,2]
[361114113,1747267845175,-687.82,0.00011718,2]
[361114114,1747267845184,-400.0,0.00011718,2]
[361114115,1747267845194,-1038.42,0.00011718,2]
[361114116,1747267845203,-731.84,0.00011718,2]
[361114117,1747267845212,-497.78,0.00011718,2]
[361114118,1747267845222,-1408.43,0.00011718,2]
[361114119,1747267845231,-400.0,0.00011718,2]
[361114120,1747267845241,-400.0,0.00011718,2]
[361114121,1747267845251,-427.33946632,0.00011718,2]
[361114122,1747267845818,-89.11053368,0.00011718,2]
[361114123,1747267845827,-437.18,0.00011718,2]
[361114124,1747267845837,-509.20946632,0.00011718,2]
[361114129,1747267846192,-144.14053368,0.00011718,2]
[361114130,1747267846201,-500.0,0.00011718,2]
[361114131,1747267846211,-438.83,0.00011718,2]
[361114132,1747267846220,-926.49,0.00011718,2]
[361114133,1747267846230,-400.0,0.00011718,2]
[361114134,1747267846243,-400.0,0.00011718,2]
[361114135,1747267846253,-1045.83,0.00011718,2]
[361114136,1747267846263,-400.0,0.00011718,2]
[361114137,1747267846274,-615.96,0.00011718,2]
[361114138,1747267846286,-400.0,0.00011718,2]
[361114139,1747267846304,-400.0,0.00011718,2]
[361114140,1747267846314,-400.0,0.00011718,2]
[361114141,1747267846324,-52046.73,0.00011718,2]
[361114142,1747267846334,-400.0,0.00011718,2]
[361114143,1747267846344,-849.37,0.00011718,2]
[361114144,1747267846354,-1367.68,0.00011718,2]
[361114145,1747267846365,-693.51,0.00011718,2]
[361114146,1747267846375,-1934.57,0.00011718,2]
[361114147,1747267846385,-845.32,0.00011718,2]
[361114148,1747267846394,-922.27,0.00011718,2]
[361114149,1747267846404,-300.49322351,0.00011719,2]
[361114150,1747267846414,-8935.51,0.00011719,2]
[361114151,1747267846424,-400.0,0.00011719,2]
[361114152,1747267846434,-400.0,0.0001172,2]
[361114153,1747267846444,-557.04,0.0001172,2]
[361114154,1747267846454,-400.0,0.0001172,2]
[361114155,1747267846464,-394.91807322,0.0001172,2]
[361114156,1747267846473,-400.0,0.0001172,2]
[361114157,1747267846483,-492.6,0.0001172,2]
[361114158,1747267846493,-400.0,0.0001172,2]
[361114159,1747267846503,-490.26948472,0.0001172,2]
[361114160,1747267846513,-589.97,0.0001172,2]
[361114161,1747267846523,-400.0,0.0001172,2]
[361114162,1747267846533,-400.0,0.0001172,2]
[361114163,1747267846543,-400.0,0.0001172,2]
[361114164,1747267846553,-400.0,0.0001172,2]
[361114165,1747267846563,-400.0,0.0001172,2]
[361114166,1747267846573,-400.0,0.0001172,2]
[361114167,1747267846583,-683.42,0.0001172,2]
[361114168,1747267846593,-400.0,0.0001172,2]
[361114169,1747267846603,-400.0,0.0001172,2]
[361114170,1747267846612,-400.0,0.0001172,2]
[361114171,1747267846622,-400.0,0.0001172,2]
[361114172,1747267846632,-400.0,0.0001172,2]
[361114173,1747267846642,-492.21,0.0001172,2]
[361114175,1747267846651,-457.59766873,0.0001172,2]
[361114176,1747267846661,-731.41,0.0001172,2]
[361114177,1747267846671,-400.0,0.0001172,2]
[361114178,1747267846680,-440.97,0.0001172,2]
[361114179,1747267846690,-400.0,0.0001172,2]
[361114180,1747267846700,-418.07,0.0001172,2]
[361114181,1747267846709,-400.0,0.0001172,2]
[361114182,1747267846718,-400.0,0.0001172,2]
[361114183,1747267846728,-572.24,0.0001172,2]
[361114184,1747267846738,-400.0,0.0001172,2]
[361114185,1747267846747,-400.0,0.0001172,2]
[361114186,1747267846757,-519.17,0.0001172,2]
[361114189,1747267846766,-400.0,0.0001172,2]
[361114191,1747267846775,-400.0,0.0001172,2]
[361114193,1747267846785,-400.0,0.0001172,2]
[361114196,1747267846794,-400.0,0.0001172,2]
[361114199,1747267846803,-400.0,0.0001172,2]
[361114201,1747267846813,-400.0,0.0001172,2]
[361114204,1747267846823,-660.43,0.0001172,2]
[361114206,1747267846833,-400.0,0.0001172,2]
[361114208,1747267846842,-400.0,0.0001172,2]
[361114210,1747267846851,-400.0,0.0001172,2]
[361114212,1747267846861,-400.0,0.0001172,2]
[361114214,1747267846870,-400.0,0.0001172,2]
[361114217,1747267846880,-400.0,0.0001172,2]
[361114219,1747267846891,-400.0,0.0001172,2]
[361114221,1747267846902,-483.16,0.0001172,2]
[361114223,1747267846912,-693.96,0.0001172,2]
[361114225,1747267846922,-1462.12,0.0001172,2]
[361114227,1747267846931,-400.0,0.0001172,2]
[361114229,1747267846940,-487.92,0.0001172,2]
[361114231,1747267846950,-400.0,0.0001172,2]
[361114233,1747267846959,-637.86,0.0001172,2]
[361114235,1747267846973,-465.94,0.0001172,2]
[361114237,1747267846982,-633.19,0.0001172,2]
[361114239,1747267846992,-400.0,0.0001172,2]
[361114241,1747267847002,-400.0,0.0001172,2]
[361114243,1747267847011,-470.82,0.0001172,2]
[361114245,1747267847021,-525.9,0.0001172,2]
[361114247,1747267847030,-436.4,0.0001172,2]
[361114249,1747267847039,-400.0,0.0001172,2]
[361114251,1747267847049,-400.0,0.0001172,2]
[361114253,1747267847058,-466.9,0.0001172,2]
[361114255,1747267847068,-1090.44,0.0001172,2]
[361114257,1747267847078,-922.84,0.0001172,2]
[361114259,1747267847088,-400.0,0.0001172,2]
[361114261,1747267847098,-400.0,0.0001172,2]
[361114264,1747267847107,-400.0,0.0001172,2]
[361114266,1747267847118,-400.0,0.0001172,2]
[361114268,1747267847128,-562.6,0.0001172,2]
[361114270,1747267847138,-400.0,0.0001172,2]
[361114272,1747267847147,-400.0,0.0001172,2]
[361114274,1747267847156,-505.91,0.0001172,2]
[361114276,1747267847165,-527.99,0.0001172,2]
[361114278,1747267847174,-1164.34,0.0001172,2]
[361114280,1747267847184,-565.54,0.0001172,2]
[361114282,1747267847194,-400.0,0.0001172,2]
[361114284,1747267847203,-1683.54,0.0001172,2]
[361114286,1747267847213,-400.0,0.0001172,2]
[361114287,1747267847223,-1123.96,0.0001172,2]
[361114289,1747267847233,-545.75,0.0001172,2]
[361114292,1747267847242,-400.0,0.0001172,2]
[361114294,1747267847252,-400.0,0.0001172,2]
[361114296,1747267847262,-400.0,0.0001172,2]
[361114297,1747267847271,-400.0,0.0001172,2]
[361114300,1747267847281,-400.0,0.0001172,2]
[361114301,1747267847290,-741.04,0.0001172,2]
[361114303,1747267847299,-423.12,0.0001172,2]
[361114305,1747267847309,-599.02,0.0001172,2]
[361114307,1747267847318,-400.0,0.0001172,2]
[361114309,1747267847327,-400.0,0.0001172,2]
[361114311,1747267847336,-400.0,0.0001172,2]
[361114313,1747267847347,-643.19,0.0001172,2]
[361114315,1747267847356,-400.0,0.0001172,2]
[361114317,1747267847367,-400.0,0.0001172,2]
[361114319,1747267847376,-500.0,0.0001172,2]
[361114321,1747267847387,-246.57,0.0001172,2]
[361114323,1747267847397,-171.3911915,0.00011755,2]
[361114325,1747267847407,-928.0,0.00011756,2]
[361114327,1747267847416,-1303.0,0.00011756,2]
[361114329,1747267847426,-798.0,0.00011756,2]
[361114331,1747267847435,-552.0,0.00011756,2]
[361114333,1747267847444,-1457.0,0.00011756,2]
[361114335,1747267847454,-918.0,0.00011756,2]
[361114337,1747267847463,-150.0,0.00011757,2]
[361114339,1747267847473,-150.0,0.00011757,2]
[361114341,1747267847482,-304.0,0.00011781,2]
[361114343,1747267847492,-150.0,0.00011803,2]
[361114345,1747267847501,-150.0,0.00011822,2]
[361114347,1747267847511,-150.0,0.00011867,2]
[361114348,1747267847525,-400.0,0.00011893,2]
[361114349,1747267847536,-471.34,0.00011893,2]
[361114350,1747267847546,-400.0,0.00011893,2]
[361114351,1747267847555,-400.0,0.00011893,2]
[361114352,1747267847565,-546.23,0.00011893,2]
[361114353,1747267847577,-491.85,0.00011893,2]
[361114354,1747267847587,-400.0,0.00011893,2]
[361114355,1747267847596,-235.0658445,0.00011893,2]
[361114356,1747267847605,-401.79,0.00011893,2]
[361114357,1747267847615,-701.82,0.00011893,2]
[361114358,1747267847624,-400.0,0.00011893,2]
[361114359,1747267847634,-404.94144845,0.00011893,2]
[361114360,1747267847643,-520.79,0.00011893,2]
[361114361,1747267847654,-400.0,0.00011893,2]
[361114362,1747267847663,-229.7155915,0.00011893,2]
[361114363,1747267847672,-400.0,0.00011893,2]
[361114364,1747267847682,-3726.25,0.00011893,2]
[361114365,1747267847691,-400.0,0.00011893,2]
[361114366,1747267847701,-400.0,0.00011893,2]
[361114367,1747267847711,-583.88,0.00011893,2]
[361114368,1747267847721,-400.0,0.00011893,2]
[361114369,1747267847731,-615.64,0.00011893,2]
[361114370,1747267847741,-420.2,0.00011893,2]
[361114371,1747267847750,-156346.70567406,0.00011894,2]
[361114372,1747267847760,-400.0,0.00011894,2]
[361114373,1747267847769,-400.0,0.00011894,2]
[361114374,1747267847778,-400.0,0.00011894,2]
[361114375,1747267847788,-513.08440089,0.00011894,2]
[361114376,1747267847798,-400.0,0.00011894,2]
[361114377,1747267847807,-400.0,0.00011894,2]
[361114378,1747267847817,-400.0,0.00011894,2]
[361114379,1747267847826,-400.0,0.00011894,2]
[361114380,1747267847836,-639.95,0.00011894,2]
[361114381,1747267847846,-400.0,0.00011894,2]
[361114382,1747267847855,-400.0,0.00011894,2]
[361114383,1747267847865,-578.22,0.00011894,2]
[361114384,1747267847874,-400.0,0.00011894,2]
[361114385,1747267847884,-400.0,0.00011894,2]
[361114386,1747267847896,-400.0,0.00011894,2]
[361114387,1747267847906,-400.0,0.00011894,2]
[361114388,1747267847917,-559.6,0.00011894,2]
[361114389,1747267847927,-400.0,0.00011894,2]
[361114390,1747267847936,-400.0,0.00011894,2]
[361114391,1747267847946,-400.0,0.00011894,2]
[361114392,1747267847958,-539.17,0.00011894,2]
[361114393,1747267847971,-400.0,0.00011894,2]
[361114394,1747267847981,-400.0,0.00011894,2]
[361114395,1747267847991,-437.84,0.00011894,2]
[361114396,1747267848001,-400.0,0.00011894,2]
[361114397,1747267848010,-439.94,0.00011894,2]
[361114398,1747267848020,-400.0,0.00011894,2]
[361114399,1747267848030,-400.0,0.00011894,2]
[361114400,1747267848039,-411.62,0.00011894,2]
[361114401,1747267848049,-400.0,0.00011894,2]
[361114402,1747267848059,-623.81,0.00011894,2]
[361114403,1747267848070,-400.0,0.00011894,2]
[361114404,1747267848080,-530.32217106,0.00011894,2]
[361114405,1747267848090,-400.0,0.00011894,2]
[361114406,1747267848100,-400.0,0.00011894,2]
[361114407,1747267848109,-400.0,0.00011894,2]
[361114408,1747267848119,-400.0,0.00011894,2]
[361114409,1747267848128,-400.0,0.00011894,2]
[361114410,1747267848137,-398.90399386,0.00011894,2]
[361114411,1747267848147,-1128.66,0.00011894,2]
[361114412,1747267848156,-400.0,0.00011894,2]
[361114413,1747267848166,-400.0,0.00011894,2]
[361114414,1747267848175,-400.0,0.00011894,2]
[361114415,1747267848184,-400.0,0.00011894,2]
[361114416,1747267848194,-400.0,0.00011894,2]
[361114417,1747267848203,-418.65,0.00011894,2]
[361114418,1747267848212,-400.0,0.00011894,2]
[361114419,1747267848221,-400.0,0.00011894,2]
[361114420,1747267848231,-400.0,0.00011894,2]
[361114421,1747267848241,-400.0,0.00011894,2]
[361114422,1747267848251,-400.0,0.00011894,2]
[361114423,1747267848263,-400.0,0.00011894,2]
[361114424,1747267848273,-172.89,0.00011894,2]
[361114425,1747267848283,-400.0,0.00011894,2]
[361114426,1747267848293,-400.0,0.00011894,2]
[361114427,1747267848303,-400.0,0.00011894,2]
[361114428,1747267848313,-215.49300907,0.00011894,2]
[361114429,1747267848327,-400.0,0.00011894,2]
[361114430,1747267848337,-400.0,0.00011894,2]
[361114431,1747267848347,-400.0,0.00011894,2]
[361114432,1747267848357,-400.0,0.00011894,2]
[361114433,1747267848367,-432.13,0.00011894,2]
[361114434,1747267848378,-400.0,0.00011894,2]
[361114435,1747267848388,-400.0,0.00011894,2]
[361114436,1747267848398,-400.0,0.00011894,2]
[361114437,1747267848408,-400.0,0.00011894,2]
[361114438,1747267848417,-400.0,0.00011894,2]
[361114439,1747267848427,-400.0,0.00011894,2]
[361114440,1747267848437,-400.36811444,0.00011894,2]
[361114441,1747267848448,-400.0,0.00011894,2]
[361114442,1747267848458,-464.33,0.00011894,2]
[361114443,1747267848468,-400.0,0.00011894,2]
[361114444,1747267848477,-400.0,0.00011894,2]
[361114445,1747267848489,-400.0,0.00011894,2]
[361114446,1747267848499,-400.0,0.00011894,2]
[361114447,1747267848509,-400.0,0.00011894,2]
[361114448,1747267848519,-400.0,0.00011894,2]
[361114449,1747267848529,-400.0,0.00011894,2]
[361114450,1747267848540,-400.0,0.00011894,2]
[361114451,1747267848550,-400.0,0.00011894,2]
[361114452,1747267848559,-400.0,0.00011894,2]
[361114453,1747267848570,-400.0,0.00011894,2]
[361114454,1747267848580,-400.0,0.00011894,2]
[361114455,1747267848589,-400.0,0.00011894,2]
[361114456,1747267848599,-400.0,0.00011894,2]
[361114457,1747267848608,-400.0,0.00011894,2]
[361114458,1747267848617,-400.0,0.00011894,2]
[361114459,1747267848627,-400.0,0.00011894,2]
[361114460,1747267848637,-400.0,0.00011894,2]
[361114461,1747267848647,-400.0,0.00011894,2]
[361114462,1747267848656,-400.0,0.00011894,2]
[361114463,1747267848666,-400.0,0.00011894,2]
[361114464,1747267848676,-400.0,0.00011894,2]
[361114465,1747267848686,-400.0,0.00011894,2]
[361114466,1747267848695,-170.64077926,0.00011894,2]
[361114467,1747267848705,-400.0,0.00011894,2]
[361114468,1747267848716,-400.0,0.00011894,2]
[361114469,1747267848726,-400.0,0.00011894,2]
[361114470,1747267848735,-400.0,0.00011894,2]
[361114471,1747267848745,-400.0,0.00011894,2]
[361114472,1747267848755,-308.06944977,0.00011894,2]
[361114473,1747267848764,-370.6,0.00011894,2]
[361114474,1747267848773,-698.6,0.00011894,2]
[361114475,1747267848784,-400.0,0.00011894,2]
[361114476,1747267848793,-400.0,0.00011894,2]
[361114477,1747267848803,-664.92,0.00011894,2]
[361114478,1747267848812,-400.0,0.00011894,2]
[361114479,1747267848822,-400.0,0.00011894,2]
[361114480,1747267848832,-400.0,0.00011894,2]
[361114481,1747267848841,-910.14,0.00011894,2]
[361114482,1747267848851,-536.91,0.00011894,2]
[361114483,1747267848860,-400.0,0.00011894,2]
[361114484,1747267848870,-400.0,0.00011894,2]
[361114485,1747267848879,-1608.69,0.00011894,2]
[361114486,1747267848889,-400.0,0.00011894,2]
[361114487,1747267848901,-400.0,0.00011894,2]
[361114488,1747267848911,-400.0,0.00011894,2]
[361114489,1747267848920,-400.0,0.00011894,2]
[361114490,1747267848929,-571.3,0.00011894,2]
[361114491,1747267848939,-1133.32,0.00011894,2]
[361114492,1747267848948,-400.0,0.00011894,2]
[361114493,1747267848957,-400.0,0.00011894,2]
[361114494,1747267848967,-400.0,0.00011894,2]
[361114495,1747267848978,-400.0,0.00011894,2]
[361114496,1747267848989,-904.36,0.00011894,2]
[361114497,1747267848999,-502.27,0.00011894,2]
[361114498,1747267849008,-431.3,0.00011894,2]
[361114499,1747267849018,-400.0,0.00011894,2]
[361114500,1747267849028,-400.0,0.00011894,2]
[361114501,1747267849037,-400.0,0.00011894,2]
[361114502,1747267849046,-1214.15,0.00011894,2]
[361114503,1747267849056,-1118.64,0.00011894,2]
[361114504,1747267849065,-400.0,0.00011894,2]
[361114505,1747267849075,-3819.5,0.00011894,2]
[361114506,1747267849085,-776.32,0.00011894,2]
[361114507,1747267849094,-400.0,0.00011894,2]
[361114508,1747267849103,-400.0,0.00011894,2]
[361114509,1747267849113,-400.0,0.00011894,2]
[361114510,1747267849123,-439.09,0.00011894,2]
[361114511,1747267849133,-1243.44,0.00011894,2]
[361114512,1747267849142,-400.0,0.00011894,2]
[361114513,1747267849151,-400.0,0.00011894,2]
[361114514,1747267849162,-933.24,0.00011894,2]
[361114515,1747267849171,-400.0,0.00011894,2]
[361114516,1747267849180,-400.0,0.00011894,2]
[361114517,1747267849189,-400.0,0.00011894,2]
[361114518,1747267849199,-780.42,0.00011894,2]
[361114519,1747267849208,-400.0,0.00011894,2]
[361114520,1747267849218,-400.0,0.00011894,2]
[361114521,1747267849229,-400.0,0.00011894,2]
[361114522,1747267849238,-400.0,0.00011894,2]
[361114523,1747267849441,-540.94,0.00011894,2]
[361114524,1747267849491,-645.51,0.00011894,2]
[361114525,1747267849504,-543.4,0.00011894,2]
[361114526,1747267849514,-400.0,0.00011894,2]
[361114527,1747267849524,-400.0,0.00011894,2]
[361114528,1747267849534,-850.61,0.00011894,2]
[361114529,1747267849544,-452.87,0.00011894,2]
[361114530,1747267849554,-4182.82,0.00011894,2]
[361114531,1747267849564,-400.0,0.00011894,2]
[361114532,1747267849576,-400.0,0.00011894,2]
[361114533,1747267849585,-400.0,0.00011894,2]
[361114534,1747267849595,-1918.33,0.00011894,2]
[361114535,1747267849605,-757.06,0.00011894,2]
[361114536,1747267849615,-500.0,0.00011894,2]
[361114537,1747267849625,-1655.63,0.00011894,2]
[361114538,1747267849634,-611.33,0.00011894,2]
[361114539,1747267849644,-400.0,0.00011894,2]
[361114540,1747267849654,-400.0,0.00011894,2]
[361114541,1747267849664,-1413.76,0.00011894,2]
[361114542,1747267849674,-2663.04,0.00011894,2]
[361114543,1747267849683,-543.74126721,0.00011894,2]
[361114544,1747267849693,-548.81,0.00011894,2]
[361114545,1747267849703,-795.1,0.00011894,2]
[361114546,1747267849712,-1000.0,0.00011894,2]
[361114547,1747267849721,-400.0,0.00011894,2]
[361114548,1747267849730,-437.24,0.00011894,2]
[361114549,1747267849740,-572.31,0.00011894,2]
[361114550,1747267849751,-327.3601526,0.00011894,2]
[361114551,1747267849761,-400.0,0.00011894,2]
[361114552,1747267849771,-400.0,0.00011894,2]
[361114553,1747267849781,-1052.29,0.00011894,2]
[361114554,1747267849790,-400.0,0.00011894,2]
[361114555,1747267849800,-2820.53,0.00011894,2]
[361114556,1747267849810,-400.0,0.00011894,2]
[361114557,1747267849821,-2143.37,0.00011894,2]
[361114558,1747267849830,-502.95,0.00011894,2]
[361114559,1747267849839,-400.0,0.00011894,2]
[361114560,1747267849849,-843.02,0.00011894,2]
[361114561,1747267849859,-400.0,0.00011894,2]
[361114562,1747267849868,-4595.27,0.00011894,2]
[361114563,1747267849878,-400.0,0.00011894,2]
[361114564,1747267849887,-400.0,0.00011894,2]
[361114565,1747267849901,-401.02,0.00011894,2]
[361114566,1747267849911,-15580.69,0.00011894,2]
[361114567,1747267849920,-400.0,0.00011894,2]
[361114568,1747267849930,-464.73,0.00011894,2]
[361114569,1747267849939,-693.85,0.00011894,2]
[361114570,1747267849948,-400.0,0.00011894,2]
[361114571,1747267849958,-400.0,0.00011894,2]
[361114572,1747267849967,-511.37883796,0.00011894,2]
[361114573,1747267849977,-5084.84,0.00011894,2]
[361114574,1747267849986,-400.0,0.00011894,2]
[361114575,1747267849996,-400.0,0.00011894,2]
[361114576,1747267850006,-2197.67,0.00011895,2]
[361114577,1747267850016,-400.0,0.00011895,2]
[361114578,1747267850025,-400.0,0.00011895,2]
[361114579,1747267850035,-400.0,0.00011895,2]
[361114580,1747267850045,-8146.39,0.00011895,2]
[361114581,1747267850055,-400.0,0.00011895,2]
[361114582,1747267850065,-1945.27,0.00011895,2]
[361114583,1747267850075,-400.0,0.00011895,2]
[361114584,1747267850085,-709.14,0.00011895,2]
[361114585,1747267850095,-400.0,0.00011895,2]
[361114586,1747267850105,-400.0,0.00011895,2]
[361114587,1747267850114,-1481.39,0.00011895,2]
[361114588,1747267850124,-897.03,0.00011895,2]
[361114589,1747267850133,-522.25,0.00011895,2]
[361114590,1747267850142,-235.81268187,0.000119,2]
[361114591,1747267850153,-604.16850168,0.000119,2]
[361114592,1747267850163,-10362.84935671,0.000119,2]
[361114593,1747267850172,-150.0,0.00011901,2]
[361114594,1747267850181,-1000.0,0.00011946,2]
[361114595,1747267850192,-500.0,0.00011973,2]
[361114596,1747267850202,-500.0,0.00011973,2]
[361114597,1747267850211,-500.0,0.00011973,2]
[361114598,1747267850222,-501.86052438,0.00011973,2]
[361114599,1747267850231,-500.0,0.00011973,2]
[361114600,1747267850241,-500.0,0.00011974,2]
[361114601,1747267850251,-202.42469054,0.0001199,2]
[361114602,1747267850261,-442.22,0.00011991,2]
[361114603,1747267850270,-400.0,0.00011991,2]
[361114604,1747267850280,-451.81,0.00011991,2]
[361114605,1747267850289,-2363.01,0.00011991,2]
[361114606,1747267850299,-208.90367949,0.00011991,2]
[361114607,1747267850309,-3569.66,0.00011991,2]
[361114608,1747267850319,-400.0,0.00011991,2]
[361114609,1747267850328,-460.93,0.00011991,2]
[361114610,1747267850338,-400.0,0.00011991,2]
[361114611,1747267850348,-400.0,0.00011991,2]
[361114612,1747267850358,-766.01,0.00011991,2]
[361114613,1747267850369,-400.0,0.00011991,2]
[361114614,1747267850379,-400.0,0.00011992,2]
[361114615,1747267850389,-10074.975236,0.00011992,2]
[361114616,1747267850399,-400.0,0.00011992,2]
[361114617,1747267850409,-400.0,0.00011992,2]
[361114618,1747267850419,-400.0,0.00011992,2]
[361114619,1747267850428,-400.0,0.00011992,2]
[361114620,1747267850438,-1463.78,0.00011992,2]
[361114621,1747267850448,-687.82,0.00011992,2]
[361114622,1747267850458,-274.71948188,0.00011992,2]
[361114623,1747267850468,-1038.42,0.00011992,2]
[361114624,1747267850478,-731.84,0.00011992,2]
[361114625,1747267850488,-497.78,0.00011992,2]
[361114626,1747267850498,-1408.43,0.00011992,2]
[361114627,1747267850507,-400.0,0.00011992,2]
[361114628,1747267850517,-400.0,0.00011992,2]
[361114629,1747267850528,-516.45,0.00011992,2]
[361114630,1747267850538,-437.18,0.00011992,2]
[361114631,1747267850548,-653.35,0.00011992,2]
[361114632,1747267850558,-438.83,0.00011992,2]
[361114633,1747267850568,-926.49,0.00011992,2]
[361114634,1747267850578,-400.0,0.00011992,2]
[361114635,1747267850587,-400.0,0.00011992,2]
[361114636,1747267850596,-1045.83,0.00011992,2]
[361114637,1747267850606,-400.0,0.00011992,2]
[361114638,1747267850616,-615.96,0.00011992,2]
[361114639,1747267850625,-400.0,0.00011992,2]
[361114640,1747267850635,-400.0,0.00011992,2]
[361114641,1747267850644,-400.0,0.00011992,2]
[361114642,1747267850654,-52046.73,0.00011992,2]
[361114643,1747267850664,-400.0,0.00011992,2]
[361114644,1747267850673,-849.37,0.00011992,2]
[361114645,1747267850683,-1367.68,0.00011992,2]
[361114646,1747267850693,-693.51,0.00011992,2]
[361114647,1747267850702,-1934.57,0.00011992,2]
[361114648,1747267850711,-845.32,0.00011992,2]
[361114649,1747267850720,-922.27,0.00011992,2]
[361114650,1747267850730,-8935.51,0.00011993,2]
[361114651,1747267850740,-400.0,0.00011993,2]
[361114652,1747267850749,-400.0,0.00011994,2]
[361114653,1747267850759,-557.04,0.00011994,2]
[361114654,1747267850768,-400.0,0.00011994,2]
[361114655,1747267850778,-492.6,0.00011994,2]
[361114656,1747267850787,-589.97,0.00011994,2]
[361114657,1747267850797,-400.0,0.00011994,2]
[361114658,1747267850806,-400.0,0.00011994,2]
[361114659,1747267850816,-400.0,0.00011994,2]
[361114660,1747267850826,-400.0,0.00011994,2]
[361114661,1747267850835,-683.42,0.00011994,2]
[361114662,1747267850845,-400.0,0.00011994,2]
[361114663,1747267850855,-400.0,0.00011994,2]
[361114664,1747267850865,-400.0,0.00011994,2]
[361114665,1747267850874,-400.0,0.00011994,2]
[361114666,1747267850883,-492.21,0.00011994,2]
[361114667,1747267850894,-731.41,0.00011994,2]
[361114668,1747267850904,-400.0,0.00011994,2]
[361114669,1747267850913,-440.97,0.00011994,2]
[361114670,1747267850922,-400.0,0.00011994,2]
[361114671,1747267850932,-418.07,0.00011994,2]
[361114672,1747267850941,-400.0,0.00011994,2]
[361114673,1747267850950,-400.0,0.00011994,2]
[361114674,1747267850960,-572.24,0.00011994,2]
[361114675,1747267850969,-400.0,0.00011994,2]
[361114676,1747267850980,-400.0,0.00011994,2]
[361114677,1747267850989,-519.17,0.00011994,2]
[361114678,1747267850998,-400.0,0.00011994,2]